lending/lending_fUSD_20240131
["ID","MTS","AMOUNT","RATE_DAILY","PERIOD"]
[313084102,1706734074772,250.0,0.0002179,2]
[313084103,1706734201935,1000.0,0.00021796,2]
[313084104,1706734212315,157.32998881,0.00022443,2]
[313084114,1706734232946,-155.0,0.00022502,2]
[313084115,1706734232955,-193.14,0.00022507,2]
[313084116,1706734232966,-1013.76050166,0.00022507,2]
[313084117,1706734232976,-729.36,0.00022508,2]
[313084118,1706734232985,-644.53683041,0.00022514,2]
[313084119,1706734232994,-191.15111763,0.00022514,2]
[313084120,1706734233003,-157.32998881,0.00022534,2]
[313084121,1706734233012,-950.02340039,0.00022543,2]
[313084122,1706734233021,-204.09151366,0.00022566,2]
[313084123,1706734233030,-310.47466724,0.00022566,2]
[313084124,1706734233039,-312.17935994,0.00022567,2]
[313084125,1706734233047,-197.32035589,0.00022568,2]
[313084126,1706734233056,-526.13179987,0.00022568,2]
[313084127,1706734233065,-1978.57350562,0.00022568,2]
[313084128,1706734233076,-667.61891395,0.00022568,2]
[313084129,1706734233088,-737.05569696,0.00022568,2]
[313084130,1706734233099,-3409.97307988,0.00022568,2]
[313084131,1706734233110,-10917.10514038,0.00022568,2]
[313084132,1706734233122,-2872.46869429,0.00022568,2]
[313084133,1706734233134,-736.15078688,0.00022568,2]
[313084134,1706734233151,-733.47419197,0.00022568,2]
[313084135,1706734233163,-341.48500725,0.00022568,2]
[313084137,1706734233187,-20721.12768684,0.00022568,2]
[313084139,1706734233196,-61871.85213453,0.00022569,2]
[313084141,1706734233208,-929.82241406,0.00022569,2]
[313084143,1706734233219,-431.72428799,0.00022569,2]
[313084146,1706734233234,-763.3723559,0.00022569,2]
[313084148,1706734233245,-517.85068696,0.00022569,2]
[313084151,1706734233256,-564.66263687,0.00022569,2]
[313084155,1706734233267,-521.07491688,0.00022569,2]
[313084159,1706734233280,-435.04752656,0.00022569,2]
[313084164,1706734233291,-1224.28502304,0.00022569,2]
[313084168,1706734233302,-603.01113768,0.00022569,2]
[313084172,1706734233313,-401.911,0.00022569,2]
[313084175,1706734233324,-496.10168245,0.00022569,2]
[313084179,1706734233336,-1386.72675487,0.00022569,2]
[313084237,1706734237646,-398.66629,0.00022569,2]
[313084238,1706734237708,-888.37330086,0.00022569,2]
[313084239,1706734237826,-208675.71425135,0.00022569,2]
[313084240,1706734237836,-157.32998881,0.00022626,2]
[313084241,1706734237845,-157.69,0.00022643,2]
[313084242,1706734237855,-300.0,0.00022667,2]
[313084243,1706734237867,-150.0,0.00022667,2]
[313084244,1706734237878,-205.69,0.00022698,2]
[313084245,1706734237889,-2066.3926,0.00022715,2]
[313084246,1706734237901,-157.32998881,0.00022717,2]
[313084247,1706734237912,-300.0,0.00022726,2]
[313084248,1706734237921,-150.0,0.00022728,2]
[313084249,1706734237931,-150.0,0.0002273,2]
[313084250,1706734237940,-150.0,0.00022731,2]
[313084251,1706734237949,-257.48503298,0.00022735,2]
[313084252,1706734237959,-150.0,0.00022735,2]
[313084253,1706734237968,-150.0,0.00022737,2]
[313084255,1706734237978,-234.63597224,0.00022738,2]
[313084257,1706734237987,-150.0,0.00022741,2]
[313084260,1706734237996,-150.0,0.00022745,2]
[313084262,1706734238006,-150.0,0.00022746,2]
[313084264,1706734238015,-150.0,0.00022747,2]
[313084266,1706734238025,-150.0,0.0002275,2]
[313084268,1706734238034,-150.0,0.00022754,2]
[313084270,1706734238043,-150.0,0.00022754,2]
[313084271,1706734238053,-300.0,0.00022755,2]
[313084274,1706734238062,-1500.0,0.00022755,2]
[313084276,1706734238071,-737.53,0.00022755,2]
[313084277,1706734238081,-150.0,0.00022757,2]
[313084280,1706734238090,-150.0,0.00022758,2]
[313084282,1706734238099,-725.43,0.00022758,2]
[313084284,1706734238109,-150.0,0.0002276,2]
[313084286,1706734238121,-150.0,0.0002276,2]
[313084288,1706734238130,-723.06,0.00022761,2]
[313084290,1706734238139,-727.8,0.00022762,2]
[313084292,1706734238150,-150.0,0.00022763,2]
[313084293,1706734238159,-722.75,0.00022765,2]
[313084294,1706734238169,-150.0,0.00022768,2]
[313084295,1706734238179,-150.0,0.0002278,2]
[313084296,1706734238188,-150.0,0.0002278,2]
[313084297,1706734238198,-150.0,0.00022786,2]
[313084298,1706734238207,-150.0,0.00022786,2]
[313084299,1706734238217,-150.0,0.00022788,2]
[313084300,1706734238226,-150.0,0.00022793,2]
[313084301,1706734238235,-150.0,0.00022795,2]
[313084302,1706734238245,-3210.96499878,0.00022798,2]
[313084303,1706734238254,-150.0,0.00022798,2]
[313084304,1706734238264,-150.0,0.00022798,2]
[313084305,1706734238273,-150.0,0.00022799,2]
[313084306,1706734238283,-150.0,0.00022801,2]
[313084307,1706734238292,-300.0,0.00022802,2]
[313084308,1706734238302,-157.32998881,0.00022809,2]
[313084309,1706734238312,-150.0,0.00022815,2]
[313084310,1706734238322,-150.0,0.00022818,2]
[313084311,1706734238331,-1500.0,0.00022819,2]
[313084312,1706734238340,-150.0,0.00022819,2]
[313084313,1706734238350,-150.0,0.0002282,2]
[313084314,1706734238360,-150.0,0.00022822,2]
[313084315,1706734238369,-150.0,0.00022824,2]
[313084316,1706734238379,-150.0,0.0002283,2]
[313084317,1706734238389,-150.0,0.00022832,2]
[313084318,1706734238400,-150.0,0.00022837,2]
[313084319,1706734238409,-300.0,0.00022838,2]
[313084320,1706734238419,-150.0,0.00022846,2]
[313084321,1706734238428,-150.0,0.00022855,2]
[313084322,1706734238438,-842.5370952,0.00022857,2]
[313084323,1706734238447,-258.5,0.00022857,2]
[313084324,1706734238460,-150.0,0.00022864,2]
[313084325,1706734238469,-1500.0,0.00022871,2]
[313084326,1706734238480,-157.69,0.00022871,2]
[313084327,1706734238491,-150.0,0.00022873,2]
[313084328,1706734238501,-150.0,0.00022879,2]
[313084329,1706734238512,-150.0,0.0002288,2]
[313084330,1706734238522,-193.70434859,0.00022886,2]
[313084331,1706734238532,-1500.0,0.00022887,2]
[313084332,1706734238542,-150.0,0.00022887,2]
[313084333,1706734238552,-150.0,0.00022891,2]
[313084334,1706734238562,-150.0,0.00022895,2]
[313084335,1706734238574,-150.0,0.00022895,2]
[313084336,1706734238585,-150.0,0.00022895,2]
[313084337,1706734238595,-35289.90992676,0.00022896,2]
[313084338,1706734238610,-30797.41942034,0.00022896,2]
[313084339,1706734238673,856.49,0.00021805,2]
[313084343,1706734240176,-643.035,0.00022896,2]
[313084344,1706734240280,-6169.1741907,0.00022896,2]
[313084360,1706734241321,-4894.98722629,0.00022896,2]
[313084368,1706734242700,-446.22451229,0.00022896,2]
[313084369,1706734242712,-624.1021534,0.00022896,2]
[313084370,1706734242724,-1174.34256977,0.00022896,2]
[313084371,1706734242825,-2963.23088319,0.00022896,2]
[313084372,1706734242895,-134170.99953519,0.00022896,2]
[313084375,1706734242909,-592386.59439236,0.00022896,2]
[313084376,1706734242923,-6970.70757764,0.00022896,2]
[313084378,1706734245769,-12943.54165292,0.00022896,2]
[313084379,1706734245830,-18108.9406631,0.00022896,2]
[313084380,1706734245841,-617.06208399,0.00022896,2]
[313084403,1706734277432,2000.0,0.00021965,2]
[313084404,1706734303959,617.1,0.00020045,2]
[313084405,1706734304197,617.1,0.00022309,2]
[313084406,1706734387170,15346.77,0.00021957,2]
[313084407,1706734435093,160.45,0.00022017,2]
[313084408,1706734475330,155.1,0.00021833,2]
[313084409,1706734507877,965.32,0.00021818,2]
[313084411,1706734550298,250.0,0.00021803,2]
[313084415,1706734594124,205.0,0.00022258,2]
[313084417,1706734659454,200.0,0.00021793,2]
[313084418,1706734670109,1366.64,0.00021959,2]
[313084420,1706734713622,1279.99,0.00021853,2]
[313084421,1706734828169,555.39,0.00019868,2]
[313084422,1706734828400,555.39,0.00022132,2]
[313084424,1706734934344,503.84,0.00021786,2]
[313084425,1706734944235,804.43,0.00021786,2]
[313084426,1706734959602,160.45,0.00021947,2]
[313084429,1706735045010,154.26,0.00021786,2]
[313084432,1706735093456,15291.42,0.00021783,2]
[313084434,1706735128317,840.0,0.00021748,2]
[313084436,1706735165985,250.0,0.00021739,2]
[313084437,1706735175645,1047.62,0.00021913,2]
[313084439,1706735311360,445.64,0.00021728,2]
[313084440,1706735313688,205.0,0.00022056,2]
[313084441,1706735348494,499.85,0.0001981,2]
[313084442,1706735348985,499.85,0.00022074,2]
[313084443,1706735396018,878.09,0.00021733,2]
[313084457,1706735433244,-2228.73107918,0.00022528,2]
[313084458,1706735433257,-398.65875379,0.00022528,2]
[313084459,1706735433267,-677.49178837,0.00022529,2]
[313084460,1706735433278,-2259.64846432,0.00022529,2]
[313084461,1706735433287,-1264.80099352,0.00022529,2]
[313084462,1706735433307,-994.8474708,0.00022529,2]
[313084463,1706735433316,-5436.0,0.00022533,2]
[313084464,1706735433328,-157.32998881,0.00022555,2]
[313084465,1706735433337,-6726.1536,0.00022567,2]
[313084466,1706735433347,-398.59179687,0.00022568,5]
[313084467,1706735433358,-726.2,0.0002262,2]
[313084468,1706735433369,-737.26,0.00022626,2]
[313084469,1706735433381,-711.71,0.00022634,2]
[313084470,1706735433392,-727.6,0.00022643,2]
[313084471,1706735433403,-718.99,0.00022655,2]
[313084472,1706735433413,-155.80319927,0.00022665,2]
[313084473,1706735433423,-517.85038684,0.00022665,2]
[313084474,1706735433433,-4282.43045122,0.00022666,2]
[313084475,1706735433442,-289.80370746,0.00022667,2]
[313084476,1706735433451,-289.80370746,0.00022667,2]
[313084477,1706735433460,-289.80370746,0.00022667,2]
[313084478,1706735433470,-289.80370746,0.00022667,2]
[313084479,1706735433480,-289.80370746,0.00022667,2]
[313084480,1706735433490,-289.80370746,0.00022667,2]
[313084481,1706735433499,-289.80370746,0.00022667,2]
[313084482,1706735433508,-289.80370746,0.00022667,2]
[313084483,1706735433518,-289.80370746,0.00022667,2]
[313084485,1706735433527,-289.80370746,0.00022667,2]
[313084487,1706735433536,-289.80370746,0.00022667,2]
[313084489,1706735433545,-289.80370746,0.00022667,2]
[313084490,1706735433554,-289.80370746,0.00022667,2]
[313084491,1706735433564,-289.80370746,0.00022667,2]
[313084492,1706735433573,-289.80370746,0.00022667,2]
[313084493,1706735433583,-289.80370746,0.00022667,2]
[313084494,1706735433592,-289.80370746,0.00022667,2]
[313084495,1706735433601,-289.80370746,0.00022667,2]
[313084496,1706735433609,-289.80370746,0.00022667,2]
[313084497,1706735433619,-289.80370746,0.00022667,2]
[313084498,1706735433630,-289.80370746,0.00022667,2]
[313084499,1706735433639,-289.80370746,0.00022667,2]
[313084500,1706735433649,-289.80370746,0.00022667,2]
[313084501,1706735433658,-289.80370746,0.00022667,2]
[313084502,1706735433668,-289.80370746,0.00022667,2]
[313084503,1706735433677,-289.80370746,0.00022667,2]
[313084504,1706735433688,-289.80370746,0.00022667,2]
[313084505,1706735433697,-289.80370746,0.00022667,2]
[313084506,1706735433706,-289.80370746,0.00022667,2]
[313084507,1706735433715,-289.80370746,0.00022667,2]
[313084508,1706735433724,-289.80370746,0.00022667,2]
[313084509,1706735433733,-289.80370746,0.00022667,2]
[313084510,1706735433742,-289.80370746,0.00022667,2]
[313084511,1706735433751,-289.80370746,0.00022667,2]
[313084512,1706735433760,-289.80370746,0.00022667,2]
[313084513,1706735433770,-729.33,0.00022667,2]
[313084514,1706735433779,-735.9,0.00022683,2]
[313084515,1706735433788,-1391.4714,0.00022696,2]
[313084516,1706735433798,-10095.1198,0.00022696,2]
[313084517,1706735433808,-2500.0,0.00022696,2]
[313084518,1706735433818,-725.67,0.00022707,2]
[313084519,1706735433827,-719.04,0.00022716,2]
[313084520,1706735433836,-150.0,0.00022728,2]
[313084521,1706735433846,-150.0,0.00022744,2]
[313084522,1706735433856,-164.60876353,0.00022745,2]
[313084523,1706735433867,-715.33,0.00022747,2]
[313084524,1706735433876,-150.0,0.00022758,2]
[313084525,1706735433890,-726.72,0.0002276,2]
[313084526,1706735433901,-150.0,0.00022771,2]
[313084527,1706735433911,-726.12,0.00022781,2]
[313084528,1706735433922,-193.70434859,0.00022786,2]
[313084529,1706735433935,-150.0,0.00022787,2]
[313084530,1706735433947,-150.0,0.0002279,2]
[313084531,1706735433957,-362.29024817,0.00022794,2]
[313084532,1706735433972,-168.78411282,0.00022795,2]
[313084533,1706735433982,-500.0,0.00022795,2]
[313084534,1706735433993,-166.776333,0.00022796,2]
[313084535,1706735434003,-2943.38458227,0.00022796,2]
[313084536,1706735434013,-890.55801968,0.00022796,2]
[313084537,1706735434024,-358.5034672,0.00022796,2]
[313084538,1706735434037,-901.35155815,0.00022796,2]
[313084539,1706735434048,-2017.03880547,0.00022796,2]
[313084540,1706735434058,-245.77259154,0.00022796,2]
[313084541,1706735434068,-1385.54861026,0.00022796,2]
[313084542,1706735434078,-36370.2542,0.00022796,2]
[313084543,1706735434089,-1052.4692,0.00022796,2]
[313084544,1706735434099,-4627.9433,0.00022796,2]
[313084545,1706735434109,-801179.2097,0.00022796,2]
[313084546,1706735434119,-709.82,0.00022817,2]
[313084547,1706735434131,-150.0,0.00022851,2]
[313084548,1706735434154,-150.0,0.00022857,2]
[313084549,1706735434165,-150.0,0.00022858,2]
[313084550,1706735434176,-724.94,0.00022873,2]
[313084551,1706735434187,-800.0,0.00022877,2]
[313084552,1706735434198,-150.0,0.00022887,2]
[313084553,1706735434209,-1205.85970524,0.00022894,2]
[313084554,1706735434219,-690.0,0.00022896,2]
[313084555,1706735434229,-424827.62923733,0.00022896,2]
[313084556,1706735434244,-766.57604259,0.00022896,2]
[313084557,1706735434267,-379.0,0.00022896,2]
[313084558,1706735434279,-501.636,0.00022896,2]
[313084559,1706735434301,-550.0,0.00022896,2]
[313084566,1706735437848,-621.0,0.00022896,2]
[313084567,1706735437857,-162932.59217056,0.00022896,2]
[313084568,1706735437871,-100413.70333281,0.00022896,2]
[313084569,1706735437883,-113254.43215359,0.00022896,2]
[313084570,1706735439290,-1076.54155544,0.00022896,2]
[313084571,1706735439353,-1376.22010586,0.00022896,2]
[313084572,1706735439365,-363.3390023,0.00022896,2]
[313084573,1706735439376,-13441.21662406,0.00022896,2]
[313084574,1706735439390,-6486.32809007,0.00022896,2]
[313084575,1706735439409,-415.94592852,0.00022896,2]
[313084576,1706735439420,-645.88539279,0.00022896,2]
[313084577,1706735439432,-438.47,0.00022896,2]
[313084579,1706735439471,-437.70943335,0.00022896,2]
[313084669,1706735440383,-1119.99184198,0.00022896,2]
[313084682,1706735440496,-25564.231776,0.00022896,2]
[313084689,1706735440554,-9562.10383663,0.00022896,2]
[313084760,1706735441215,-85717.33439217,0.00022896,2]
[313084763,1706735441237,-2309.6925201,0.00022896,2]
[313084768,1706735441277,-39832.9929915,0.00022896,2]
[313084775,1706735441333,-25605.65137725,0.00022896,2]
[313084778,1706735441345,-34451.71012127,0.00022896,2]
[313084780,1706735441354,-727.1,0.00022896,2]
[313084782,1706735441364,-731.69,0.00022896,2]
[313084784,1706735441373,-2060.66703918,0.00022897,2]
[313084992,1706735443362,-419.12892776,0.00022796,2]
[313084996,1706735443420,-2084.55755343,0.00022796,2]
[313084997,1706735443479,-16.69524607,0.00022796,2]
[313084998,1706735443489,-5961.88395393,0.00022897,2]
[313085001,1706735443541,-727.9514113,0.00022897,2]
[313085003,1706735443550,-150.0,0.00022898,2]
[313085004,1706735443560,-154.35205397,0.000229,2]
[313085005,1706735443570,-594.19194411,0.000229,6]
[313085006,1706735443579,-155.1,0.00022925,2]
[313085007,1706735443588,-150.0,0.00022937,2]
[313085008,1706735443597,-728.38,0.00022949,2]
[313085009,1706735443607,-300.0,0.00022977,2]
[313085010,1706735443616,-152.09529989,0.00022981,2]
[313085011,1706735443626,-193.70434859,0.0002299,2]
[313085012,1706735443635,-151.0201,0.00022994,3]
[313085013,1706735443646,-151.0201,0.00022994,3]
[313085014,1706735443655,-151.0201,0.00022994,3]
[313085015,1706735443664,-151.0201,0.00022994,3]
[313085016,1706735443673,-151.0201,0.00022994,3]
[313085017,1706735443682,-151.0201,0.00022994,3]
[313085018,1706735443691,-151.0201,0.00022994,3]
[313085019,1706735443700,-151.0201,0.00022994,3]
[313085020,1706735443710,-151.0201,0.00022994,3]
[313085021,1706735443719,-203.76527707,0.00022995,2]
[313085023,1706735443728,-155.0,0.00022996,2]
[313085025,1706735443738,-3036.63469718,0.00022996,2]
[313085027,1706735443747,-250.85796615,0.00022996,2]
[313085028,1706735443757,-699.51309809,0.00022996,2]
[313085029,1706735443766,-1380.64000365,0.00022996,2]
[313085031,1706735443787,-2252.9001355,0.00022996,2]
[313085033,1706735443796,-1044.21504553,0.00022996,2]
[313085035,1706735443805,-2786.87439033,0.00022996,2]
[313085037,1706735443816,-155.0,0.00022996,2]
[313085039,1706735443826,-1052.66597639,0.00022996,2]
[313085040,1706735443835,-235.65957255,0.00022996,2]
[313085041,1706735443846,-2175.67309024,0.00022996,2]
[313085042,1706735443868,-4040.89437778,0.00022996,2]
[313085043,1706735443879,-155.0,0.00022996,2]
[313085044,1706735443888,-1073.11886561,0.00022996,2]
[313085045,1706735443899,-155.0,0.00022996,2]
[313085046,1706735443910,-150.0,0.00022996,2]
[313085047,1706735443919,-150.0,0.00022996,2]
[313085048,1706735443928,-453.21134134,0.00022997,2]
[313085049,1706735443938,-161.02846362,0.00022997,2]
[313085050,1706735443947,-3470.82752822,0.00022997,2]
[313085051,1706735443961,-734.9295536,0.00022997,2]
[313085058,1706735445828,-570.875,0.00022696,2]
[313085059,1706735446399,-4250.5,0.00022696,2]
[313085060,1706735446413,-2284.99999999,0.00022696,2]
[313085061,1706735446424,-2934.50030001,0.00022696,2]
[313085062,1706735446433,-496.79085753,0.00022997,2]
[313085063,1706735446443,-533.45070224,0.00022997,2]
[313085064,1706735446452,-162.06996588,0.00022997,2]
[313085065,1706735446461,-2879.92938434,0.00022997,2]
[313085066,1706735446471,-1419.65879106,0.00022998,2]
[313085067,1706735446480,-566.68010223,0.00022998,2]
[313085068,1706735446489,-155.0,0.00022998,2]
[313085069,1706735446499,-155.0,0.00022998,2]
[313085070,1706735446508,-155.0,0.00022998,2]
[313085071,1706735446518,-155.20994129,0.00022998,2]
[313085072,1706735446527,-285.91347788,0.00022998,2]
[313085073,1706735446536,-1177.38177053,0.00022998,2]
[313085074,1706735446545,-155.0,0.00022998,2]
[313085075,1706735446555,-204.7712179,0.00022998,2]
[313085076,1706735446564,-630.041593,0.00022998,2]
[313085077,1706735446573,-362.37352791,0.00022998,2]
[313085078,1706735446582,-917.90116639,0.00022998,2]
[313085079,1706735446591,-155.0,0.00022998,2]
[313085080,1706735446600,-155.0,0.00022999,2]
[313085081,1706735446610,-315.29988484,0.00022999,2]
[313085082,1706735446619,-2150.68060016,0.00022999,2]
[313085083,1706735446628,-228.83425128,0.00022999,2]
[313085084,1706735446638,-247.24143396,0.00022999,2]
[313085085,1706735446649,-19042.08182665,0.00022999,2]
[313085086,1706735446658,-978.09363824,0.00022999,2]
[313085087,1706735446668,-150.01,0.00022999,2]
[313085088,1706735446678,-173.90448234,0.00022999,2]
[313085089,1706735446687,-1261.13846587,0.00022999,2]
[313085090,1706735446697,-1006.0055,0.00022999,2]
[313085091,1706735446706,-500.0,0.00022999,2]
[313085092,1706735446715,-371.51910231,0.00022999,2]
[313085093,1706735446725,-500.0,0.00022999,2]
[313085094,1706735446734,-218.98549595,0.00022999,2]
[313085095,1706735446743,-150.0,0.00022999,2]
[313085096,1706735446753,-150.0,0.00022999,2]
[313085097,1706735446762,-150.0,0.00022999,2]
[313085098,1706735446771,-150.0,0.00022999,2]
[313085099,1706735446780,-518.24607498,0.00022999,2]
[313085100,1706735446790,-500.0,0.00022999,2]
[313085101,1706735446799,-217.22885048,0.00022999,2]
[313085102,1706735446807,-597.32042145,0.00022999,2]
[313085103,1706735446817,-1025444.10775767,0.00023,2]
[313085104,1706735446829,-2093.8555888,0.00023,2]
[313085105,1706735446864,-1531.21878969,0.00023,2]
[313085106,1706735447611,-1081.82762118,0.00022993,2]
[313085107,1706735447621,-11329.7065985,0.00023,2]
[313085132,1706735474390,1025.21682242,0.00022308,2]
[313085133,1706735489628,176.94784805,0.00022467,2]
[313085134,1706735532973,153.56814161,0.00022461,2]
[313085135,1706735538035,153.56814149,0.00022488,2]
[313085136,1706735550495,250.0,0.00022011,2]
[313085137,1706735575059,231.18,0.00021848,2]
[313085138,1706735586785,328.0,0.0002182,2]
[313085139,1706735593399,174.53030463,0.00021819,2]
[313085140,1706735613601,737.54,0.00021918,2]
[313085141,1706735662411,250.0,0.00021719,2]
[313085142,1706735668831,155.0,0.00022501,2]
[313085143,1706735668896,260.75269255,0.00021918,2]
[313085144,1706735671648,970.53281602,0.00022501,2]
[313085145,1706735674001,768.69623108,0.00022501,2]
[313085146,1706735675414,503.69301813,0.00022501,2]
[313085147,1706735678771,677.49178837,0.00022501,2]
[313085148,1706735682259,1956.37,0.0002188,2]
[313085149,1706735682407,10310.08704134,0.00022501,2]
[313085150,1706735684326,155.0,0.00022501,2]
[313085151,1706735684928,2788.02134693,0.00022501,2]
[313085152,1706735684979,155.0,0.00022501,2]
[313085153,1706735686031,155.0,0.00022501,2]
[313085154,1706735686579,159.23228713,0.00022501,2]
[313085155,1706735688395,4257.98615526,0.00022501,2]
[313085156,1706735689110,867.79810439,0.00022501,2]
[313085157,1706735689470,489.54660479,0.00022501,2]
[313085158,1706735693415,155.0,0.00022501,2]
[313085159,1706735697109,1857.32583047,0.00022501,2]
[313085160,1706735703664,302.08860795,0.00022501,2]
[313085161,1706735707460,216.19021878,0.00022501,2]
[313085162,1706735707514,235.74772915,0.00022501,2]
[313085163,1706735710243,518.122138,0.00022501,2]
[313085164,1706735711028,171.88977379,0.00022501,2]
[313085165,1706735713155,413.22910588,0.00022501,2]
[313085166,1706735718369,362.66839239,0.00022501,2]
[313085167,1706735721183,22386.44999973,0.00022501,2]
[313085168,1706735721343,155.0,0.00022501,2]
[313085169,1706735722230,4284.36295797,0.00022501,2]
[313085170,1706735723274,245.5740509,0.00022501,2]
[313085171,1706735723693,1816.85072469,0.00022501,2]
[313085172,1706735723845,500.0,0.00022501,2]
[313085173,1706735724244,4711.10874324,0.00022501,2]
[313085174,1706735724694,5228.78655032,0.00022501,2]
[313085175,1706735727711,760.9452135,0.00022501,2]
[313085176,1706735728442,13046.63577094,0.00022501,2]
[313085178,1706735729200,3338.37650623,0.00022501,2]
[313085179,1706735733147,2325.91196662,0.00022501,2]
[313085180,1706735734131,197.49477637,0.00022501,2]
[313085181,1706735734758,690.18386963,0.00022501,2]
[313085182,1706735735444,543.6,0.0002188,2]
[313085183,1706735743503,150.0,0.00021996,2]
[313085184,1706735754165,970.53281602,0.00022501,2]
[313085185,1706735764785,4257.98615526,0.00022501,2]
[313085186,1706735776461,536.91,0.00021709,2]
[313085187,1706735777190,2000.0,0.00021709,2]
[313085188,1706735784708,449.86,0.00019783,2]
[313085189,1706735784934,449.86,0.00022047,2]
[313085190,1706735796529,1816.85072469,0.00022501,2]
[313085191,1706735797208,533.65490605,0.00022501,2]
[313085192,1706735797802,2909.36169139,0.00022501,2]
[313085193,1706735801812,155.0,0.00022501,2]
[313085194,1706735804331,760.9452135,0.00022501,2]
[313085195,1706735804869,280.05887207,0.00022501,2]
[313085196,1706735805321,581.39803385,0.00022501,2]
[313085197,1706735818287,610.57725012,0.00022047,2]
[313085198,1706735849343,150.92565863,0.00022025,2]
[313085199,1706735854677,796.5964915,0.00022501,2]
[313085200,1706735863430,176.76,0.00021996,2]
[313085202,1706735874049,155.0,0.00022501,2]
[313085203,1706735874302,2909.36169139,0.00022501,2]
[313085204,1706735875742,533.65490605,0.00022501,2]
[313085206,1706735903990,692.19851741,0.000225,2]
[313085208,1706735922396,3493.00637255,0.00022465,2]
[313085209,1706735932518,158.22,0.00021799,2]
[313085210,1706735932734,158.22,0.00021886,2]
[313085211,1706735933019,158.22,0.00021974,2]
[313085212,1706735933181,158.22,0.00022061,2]
[313085213,1706735933775,158.22,0.00022148,2]
[313085214,1706735933856,158.22,0.00022236,2]
[313085215,1706735933927,158.22,0.00022323,2]
[313085216,1706735934138,158.22,0.00022411,2]
[313085217,1706735934529,158.22,0.00022498,2]
[313085218,1706735939214,768.69623108,0.00022501,2]
[313085219,1706735984147,243.13018823,0.00022501,2]
[313085220,1706735984946,362.66839239,0.00022501,2]
[313085221,1706735987482,155.0,0.00022501,2]
[313085222,1706735989822,245.5740509,0.00022501,2]
[313085223,1706735990524,338.56847169,0.00022501,2]
[313085224,1706735991553,155.0,0.00022501,2]
[313085225,1706735992402,155.0,0.00022501,2]
[313085226,1706735993716,3338.37650623,0.00022501,2]
[313085227,1706735996943,699.81053348,0.00022501,2]
[313085228,1706735998046,83921.405,0.00022466,2]
[313085229,1706735999711,295.25,0.0002164,2]
[313085230,1706736001371,502.73699602,0.00022501,2]
[313085231,1706736001825,249.46647659,0.00022501,2]
[313085232,1706736002442,310.97245185,0.00022501,2]
[313085233,1706736002521,1206.90050166,0.00022501,2]
[313085234,1706736002954,281.9797924,0.00022336,2]
[313085235,1706736005538,3809.49845704,0.00022501,2]
[313085236,1706736007096,952.10937077,0.00022336,2]
[313085237,1706736007853,1302.01412096,0.00022276,2]
[313085238,1706736008280,247.34763938,0.00022501,2]
[313085239,1706736008813,737.6,0.00021639,2]
[313085241,1706736020979,285.84680506,0.00022336,2]
[313085242,1706736025164,221.04924005,0.00022501,2]
[313085243,1706736033754,204.0,0.00021953,2]
[313085244,1706736034339,526.53963541,0.00022501,2]
[313085245,1706736034893,247.73314621,0.00022501,2]
[313085246,1706736035451,939.46,0.00021607,2]
[313085247,1706736039608,155.0,0.00022501,2]
[313085248,1706736041154,282.94373342,0.00022501,2]
[313085249,1706736042613,525.44510824,0.00022501,2]
[313085250,1706736048592,6291.8879,0.00022466,2]
[313085251,1706736049724,21227.60583716,0.00022465,2]
[313085252,1706736052904,247.42374992,0.00022336,2]
[313085253,1706736054862,890.6054,0.00022465,2]
[313085255,1706736116546,128832.9234,0.00022464,2]